fUST/lending_fUST_20250929
["ID","MTS","AMOUNT","RATE_DAILY","PERIOD"]
[388405893,1759158632936,-691.8,0.00023773,2]
[388405895,1759158632946,-583.89,0.00023773,2]
[388405897,1759158632955,-1001.62,0.00023773,2]
[388405899,1759158632964,-480.0,0.00023773,2]
[388405900,1759158632974,-302.6823377,0.00023774,2]
[388405902,1759158632983,-567.07735589,0.00023774,2]
[388405904,1759158632993,-567.07735589,0.00023774,2]
[388405906,1759158633002,-567.07735589,0.00023774,2]
[388405908,1759158633013,-567.07735589,0.00023774,2]
[388405910,1759158633023,-567.07735589,0.00023774,2]
[388405912,1759158633032,-567.07735589,0.00023774,2]
[388405914,1759158633042,-567.07735589,0.00023774,2]
[388405916,1759158633052,-567.07735589,0.00023774,2]
[388405917,1759158633062,-567.07735589,0.00023774,2]
[388405919,1759158633072,-567.07735589,0.00023774,2]
[388405921,1759158633081,-50469.24668743,0.00023775,2]
[388405925,1759158633113,-1831.47604183,0.00023775,2]
[388406038,1759158636222,-480.0,0.00023773,2]
[388406040,1759158636232,-567.07735589,0.00023774,2]
[388406041,1759158636241,-567.07735589,0.00023774,2]
[388406043,1759158636251,-29695.15256697,0.00023775,2]
[388406096,1759158638558,-398.68281541,0.00023775,2]
[388406098,1759158638568,-480.0,0.00023786,2]
[388406100,1759158638578,-1229.08,0.00023786,2]
[388406102,1759158638588,-481.56382778,0.00023786,2]
[388406104,1759158638597,-500.0,0.00023786,2]
[388406106,1759158638607,-494.51857176,0.00023786,2]
[388406108,1759158638617,-480.0,0.00023786,2]
[388406110,1759158638627,-480.0,0.00023786,2]
[388406112,1759158638636,-2724.96,0.00023786,2]
[388406113,1759158638645,-480.0,0.00023786,2]
[388406115,1759158638657,-629.84,0.00023786,2]
[388406117,1759158638668,-2122.12,0.00023786,2]
[388406120,1759158638678,-1372.78,0.00023786,2]
[388406121,1759158638688,-480.0,0.00023786,2]
[388406123,1759158638699,-481.03289711,0.00023786,2]
[388406125,1759158638710,-965.97,0.00023786,2]
[388406127,1759158638719,-480.0,0.00023786,2]
[388406129,1759158638729,-480.0,0.00023786,2]
[388406131,1759158638740,-327.49792056,0.00023786,2]
[388406133,1759158638750,-1709.68,0.00023786,2]
[388406135,1759158638760,-480.0,0.00023786,2]
[388406137,1759158638770,-480.0,0.00023786,2]
[388406139,1759158638781,-1524.78,0.00023786,2]
[388406141,1759158638794,-480.0,0.00023786,2]
[388406143,1759158638804,-6656.2,0.00023786,2]
[388406145,1759158638813,-176.38218665,0.00023786,2]
[388406148,1759158638831,-303.61781335,0.00023786,2]
[388406150,1759158638840,-3211.75,0.00023786,2]
[388406152,1759158638848,-713.25,0.00023786,2]
[388406154,1759158638859,-499.74,0.00023786,2]
[388406155,1759158638870,-1585.94,0.00023786,2]
[388406157,1759158638879,-480.0,0.00023786,2]
[388406159,1759158638888,-480.0,0.00023786,2]
[388406161,1759158638898,-728.37,0.00023786,2]
[388406162,1759158638910,-294.55497568,0.00023786,2]
[388406164,1759158638919,-7262.35,0.00023786,2]
[388406166,1759158638929,-609.16,0.00023786,2]
[388406168,1759158638939,-480.0,0.00023786,2]
[388406170,1759158638949,-1367.3,0.00023786,2]
[388406172,1759158638960,-3836.05,0.00023786,2]
[388406174,1759158638969,-480.0,0.00023786,2]
[388406176,1759158638979,-480.0,0.00023786,2]
[388406177,1759158638988,-1186.93648556,0.00023786,2]
[388406179,1759158638999,-500.0,0.00023786,2]
[388406181,1759158639009,-365.7279724,0.00023836,2]
[388406183,1759158639019,-1462.91188958,0.00023836,2]
[388406185,1759158639029,-3288.26019981,0.00023836,2]
[388406187,1759158639039,-482.84,0.00023861,10]
[388406189,1759158639050,-6140.65,0.00023863,3]
[388406191,1759158639060,-1370.35,0.00023871,2]
[388406193,1759158639070,-480.0,0.00023871,2]
[388406195,1759158639080,-1486.66,0.00023871,2]
[388406197,1759158639090,-480.0,0.00023871,2]
[388406199,1759158639099,-480.0,0.00023871,2]
[388406201,1759158639108,-687.01,0.00023871,2]
[388406202,1759158639118,-480.0,0.00023871,2]
[388406204,1759158639127,-910.22,0.00023871,2]
[388406206,1759158639136,-2774.97,0.00023871,2]
[388406208,1759158639145,-1974.39,0.00023871,2]
[388406210,1759158639157,-671.41,0.00023871,2]
[388406212,1759158639166,-3321.62,0.00023871,2]
[388406214,1759158639175,-480.0,0.00023871,2]
[388406216,1759158639185,-957.23,0.00023871,2]
[388406218,1759158639195,-829.4,0.00023871,2]
[388406220,1759158639205,-1203.84,0.00023871,2]
[388406222,1759158639215,-296.56919635,0.00023871,2]
[388406224,1759158639225,-500.0,0.00023871,2]
[388406226,1759158639235,-500.0,0.00023871,2]
[388406228,1759158639244,-500.0,0.00023871,2]
[388406229,1759158639253,-500.0,0.00023871,2]
[388406231,1759158639263,-500.0,0.00023871,2]
[388406233,1759158639272,-677.69,0.00023871,2]
[388406235,1759158639282,-480.0,0.00023871,2]
[388406236,1759158639291,-581.73,0.00023871,2]
[388406238,1759158639300,-2196.1,0.00023871,2]
[388406240,1759158639309,-1854.65,0.00023871,2]
[388406242,1759158639318,-3030.74,0.00023871,2]
[388406244,1759158639328,-856.09,0.00023871,2]
[388406246,1759158639338,-907.45,0.00023871,2]
[388406248,1759158639347,-2000.0,0.00023872,2]
[388406250,1759158639357,-2000.0,0.00023872,2]
[388406252,1759158639368,-500.0,0.00023872,2]
[388406254,1759158639379,-500.0,0.00023872,2]
[388406255,1759158639389,-500.0,0.00023872,2]
[388406257,1759158639400,-500.0,0.00023873,2]
[388406259,1759158639411,-500.0,0.00023873,2]
[388406261,1759158639423,-500.0,0.00023873,2]
[388406263,1759158639433,-500.0,0.00023873,2]
[388406265,1759158639443,-500.0,0.00023873,2]
[388406267,1759158639454,-500.0,0.00023873,2]
[388406269,1759158639463,-500.0,0.00023873,2]
[388406271,1759158639473,-500.0,0.00023873,2]
[388406273,1759158639482,-500.0,0.00023873,2]
[388406275,1759158639491,-500.0,0.00023873,2]
[388406277,1759158639501,-500.0,0.00023873,2]
[388406279,1759158639511,-500.0,0.00023873,2]
[388406281,1759158639521,-616.25763511,0.00023873,2]
[388406282,1759158639530,-500.0,0.00023873,2]
[388406284,1759158639540,-500.0,0.00023873,2]
[388406285,1759158639549,-500.0,0.00023873,2]
[388406286,1759158639559,-500.0,0.00023873,2]
[388406287,1759158639568,-500.0,0.00023873,2]
[388406288,1759158639578,-500.0,0.00023873,2]
[388406289,1759158639587,-500.0,0.00023873,2]
[388406290,1759158639597,-634.76196504,0.00023873,2]
[388406291,1759158639607,-504.13971878,0.00023873,2]
[388406292,1759158639616,-500.0,0.00023873,2]
[388406293,1759158639626,-500.0,0.00023873,2]
[388406294,1759158639636,-500.0,0.00023873,2]
[388406295,1759158639646,-500.0,0.00023873,2]
[388406296,1759158639656,-500.0,0.00023873,2]
[388406297,1759158639666,-270.66255595,0.00023873,2]
[388406298,1759158639675,-500.0,0.00023873,2]
[388406299,1759158639685,-480.0,0.00023873,2]
[388406300,1759158639694,-3270.22,0.00023873,2]
[388406301,1759158639705,-1000.19,0.00023873,2]
[388406302,1759158639715,-4236.81,0.00023873,2]
[388406303,1759158639725,-480.0,0.00023873,2]
[388406304,1759158639734,-480.0,0.00023873,2]
[388406305,1759158639743,-170.67133341,0.00023873,2]
[388406306,1759158639752,-480.0,0.00023873,2]
[388406307,1759158639762,-480.0,0.00023873,2]
[388406308,1759158639771,-480.0,0.00023873,2]
[388406309,1759158639785,-480.0,0.00023873,2]
[388406310,1759158639794,-1376.02,0.00023873,2]
[388406311,1759158639803,-713.49,0.00023873,2]
[388406312,1759158639812,-480.0,0.00023873,2]
[388406313,1759158639823,-174.01,0.00023873,2]
[388406314,1759158640020,-480.0,0.00023873,2]
[388406315,1759158640031,-480.0,0.00023873,2]
[388406316,1759158640040,-736.74,0.00023873,2]
[388406317,1759158640050,-1058.07,0.00023873,2]
[388406320,1759158640060,-480.0,0.00023873,2]
[388406322,1759158640070,-516.43,0.00023873,2]
[388406324,1759158640079,-726.1,0.00023873,2]
[388406325,1759158640089,-513.0,0.00023873,2]
[388406326,1759158640099,-480.0,0.00023873,2]
[388406327,1759158640109,-1573.96,0.00023873,2]
[388406328,1759158640118,-480.0,0.00023873,2]
[388406329,1759158640128,-911.15,0.00023873,2]
[388406330,1759158640138,-480.0,0.00023873,2]
[388406331,1759158640147,-480.0,0.00023873,2]
[388406333,1759158640158,-1374.5,0.00023873,2]
[388406335,1759158640168,-644.37,0.00023873,2]
[388406337,1759158640177,-480.0,0.00023873,2]
[388406339,1759158640187,-776.4,0.00023873,2]
[388406340,1759158640197,-2739.1,0.00023873,2]
[388406342,1759158640207,-804.48,0.00023873,2]
[388406344,1759158640216,-1123.6,0.00023873,2]
[388406346,1759158640226,-955.87,0.00023873,2]
[388406348,1759158640235,-480.0,0.00023873,2]
[388406350,1759158640245,-480.0,0.00023873,2]
[388406352,1759158640254,-481.48808713,0.00023873,2]
[388406354,1759158640263,-480.0,0.00023873,2]
[388406356,1759158640272,-500.0,0.00023873,2]
[388406358,1759158640281,-500.0,0.00023873,2]
[388406360,1759158640291,-500.0,0.00023873,2]
[388406362,1759158640301,-832.63,0.00023873,2]
[388406364,1759158640310,-983.94,0.00023873,2]
[388406366,1759158640320,-630.52,0.00023873,2]
[388406368,1759158640329,-3275.3,0.00023873,2]
[388406369,1759158640338,-480.0,0.00023873,2]
[388406371,1759158640348,-569.07,0.00023873,2]
[388406373,1759158640357,-906.6,0.00023873,2]
[388406375,1759158640367,-480.0,0.00023873,2]
[388406377,1759158640376,-480.0,0.00023873,2]
[388406379,1759158640386,-481.82599882,0.00023873,2]
[388406381,1759158640396,-480.0,0.00023873,2]
[388406383,1759158640407,-480.0,0.00023873,2]
[388406385,1759158640417,-604.50982546,0.00023873,2]
[388406387,1759158640427,-713.41,0.00023873,2]
[388406389,1759158640436,-480.0,0.00023873,2]
[388406391,1759158640445,-480.0,0.00023873,2]
[388406393,1759158640454,-480.0,0.00023873,2]
[388406395,1759158640463,-480.0,0.00023873,2]
[388406397,1759158640472,-996.92,0.00023873,2]
[388406398,1759158640482,-480.0,0.00023873,2]
[388406400,1759158640491,-480.0,0.00023873,2]
[388406402,1759158640501,-480.0,0.00023873,2]
[388406404,1759158640510,-480.0,0.00023873,2]
[388406406,1759158640519,-518.84,0.00023873,2]
[388406408,1759158640529,-480.0,0.00023873,2]
[388406410,1759158640538,-480.0,0.00023873,2]
[388406412,1759158640548,-500.0,0.00023874,2]
[388406414,1759158640557,-500.0,0.00023874,2]
[388406416,1759158640567,-500.0,0.00023874,2]
[388406417,1759158640578,-500.0,0.00023874,2]
[388406419,1759158640588,-1602.45065138,0.00023875,2]
[388406421,1759158640597,-927.5,0.00023875,2]
[388406423,1759158640606,-480.0,0.00023875,2]
[388406425,1759158640616,-788.05,0.00023875,2]
[388406427,1759158640625,-480.0,0.00023875,2]
[388406429,1759158640635,-480.0,0.00023875,2]
[388406431,1759158640645,-480.0,0.00023875,2]
[388406433,1759158640655,-480.0,0.00023875,2]
[388406435,1759158640665,-480.0,0.00023875,2]
[388406437,1759158640675,-480.0,0.00023875,2]
[388406439,1759158640685,-844.56,0.00023875,2]
[388406441,1759158640695,-480.0,0.00023875,2]
[388406442,1759158640704,-505.9,0.00023875,2]
[388406444,1759158640714,-480.0,0.00023875,2]
[388406446,1759158640724,-1098.07,0.00023875,2]
[388406448,1759158640733,-2737.24,0.00023875,2]
[388406450,1759158640743,-665.62,0.00023875,2]
[388406452,1759158640752,-480.0,0.00023875,2]
[388406454,1759158640761,-702.8,0.00023875,2]
[388406456,1759158640771,-480.0,0.00023875,2]
[388406458,1759158640784,-500.0,0.00023875,2]
[388406460,1759158640797,-500.0,0.00023875,2]
[388406462,1759158640806,-500.0,0.00023875,2]
[388406464,1759158640816,-480.0,0.00023876,2]
[388406466,1759158640827,-480.0,0.00023876,2]
[388406468,1759158640836,-480.0,0.00023876,2]
[388406469,1759158640845,-480.0,0.00023876,2]
[388406471,1759158640854,-480.0,0.00023876,2]
[388406473,1759158640866,-480.0,0.00023876,2]
[388406475,1759158640876,-480.0,0.00023876,2]
[388406477,1759158640885,-480.0,0.00023876,2]
[388406479,1759158640894,-480.0,0.00023876,2]
[388406481,1759158640905,-685.66,0.00023876,2]
[388406483,1759158640914,-582.94,0.00023876,2]
[388406485,1759158640924,-505.679891,0.00023876,2]
[388406487,1759158640933,-480.0,0.00023876,2]
[388406489,1759158640942,-480.0,0.00023876,2]
[388406491,1759158640951,-644.99,0.00023876,2]
[388406493,1759158640961,-937.15,0.00023876,2]
[388406494,1759158640970,-480.0,0.00023876,2]
[388406496,1759158640980,-653.24,0.00023876,2]
[388406498,1759158640989,-480.0,0.00023876,2]
[388406500,1759158640998,-1742.84,0.00023876,2]
[388406502,1759158641008,-480.0,0.00023876,2]
[388406504,1759158641017,-480.0,0.00023876,2]
[388406506,1759158641026,-698.01,0.00023876,2]
[388406508,1759158641036,-704.17,0.00023876,2]
[388406510,1759158641046,-689.09,0.00023876,2]
[388406511,1759158641055,-480.0,0.00023876,2]
[388406513,1759158641064,-480.0,0.00023876,2]
[388406515,1759158641073,-480.0,0.00023876,2]
[388406517,1759158641083,-480.0,0.00023876,2]
[388406519,1759158641092,-480.0,0.00023876,2]
[388406521,1759158641100,-480.0,0.00023876,2]
[388406523,1759158641110,-480.0,0.00023876,2]
[388406525,1759158641119,-480.0,0.00023876,2]
[388406527,1759158641129,-799.28,0.00023876,2]
[388406529,1759158641138,-691.35,0.00023876,2]
[388406531,1759158641147,-480.0,0.00023876,2]
[388406533,1759158641160,-419.22779601,0.00023876,2]
[388406535,1759158641170,-300.01605822,0.00023876,2]
[388406537,1759158641179,-480.0,0.00023876,2]
[388406539,1759158641189,-480.0,0.00023876,2]
[388406540,1759158641198,-480.0,0.00023876,2]
[388406542,1759158641208,-480.0,0.00023876,2]
[388406544,1759158641217,-1833.7,0.00023876,2]
[388406546,1759158641227,-480.0,0.00023876,2]
[388406548,1759158641236,-480.0,0.00023876,2]
[388406550,1759158641247,-480.0,0.00023876,2]
[388406552,1759158641256,-480.0,0.00023876,2]
[388406554,1759158641267,-480.0,0.00023876,2]
[388406556,1759158641277,-480.0,0.00023876,2]
[388406558,1759158641286,-480.0,0.00023876,2]
[388406560,1759158641295,-630.97,0.00023876,2]
[388406561,1759158641305,-814.12,0.00023876,2]
[388406563,1759158641315,-480.0,0.00023876,2]
[388406565,1759158641325,-1561.27,0.00023876,2]
[388406567,1759158641335,-480.0,0.00023876,2]
[388406569,1759158641344,-480.0,0.00023876,2]
[388406571,1759158641354,-480.0,0.00023876,2]
[388406573,1759158641363,-480.0,0.00023876,2]
[388406575,1759158641373,-480.0,0.00023876,2]
[388406577,1759158641383,-527.58,0.00023876,2]
[388406579,1759158641393,-474.14777006,0.00023876,2]
[388406581,1759158641402,-480.0,0.00023876,2]
[388406583,1759158641416,-480.0,0.00023876,2]
[388406585,1759158641426,-610.64,0.00023876,2]
[388406587,1759158641435,-480.0,0.00023876,2]
[388406589,1759158641445,-480.0,0.00023876,2]
[388406591,1759158641455,-480.0,0.00023876,2]
[388406593,1759158641464,-595.02,0.00023876,2]
[388406595,1759158641474,-480.0,0.00023876,2]
[388406597,1759158641484,-480.0,0.00023876,2]
[388406599,1759158641494,-838.28,0.00023876,2]
[388406601,1759158641505,-480.0,0.00023876,2]
[388406603,1759158641514,-648.84,0.00023876,2]
[388406604,1759158641523,-480.0,0.00023876,2]
[388406606,1759158641533,-365.14262626,0.00023876,2]
[388406608,1759158641542,-480.0,0.00023876,2]
[388406610,1759158641551,-480.0,0.00023876,2]
[388406612,1759158641561,-480.0,0.00023876,2]
[388406614,1759158641571,-480.0,0.00023876,2]
[388406616,1759158641580,-480.0,0.00023876,2]
[388406618,1759158641589,-480.0,0.00023876,2]
[388406620,1759158641599,-480.0,0.00023876,2]
[388406622,1759158641607,-480.0,0.00023876,2]
[388406624,1759158641616,-480.0,0.00023876,2]
[388406626,1759158641628,-809.46,0.00023876,2]
[388406628,1759158641641,-480.0,0.00023876,2]
[388406631,1759158641658,-480.0,0.00023876,2]
[388406633,1759158641670,-629.6,0.00023876,2]
[388406635,1759158641682,-480.0,0.00023876,2]
[388406637,1759158641695,-500.0,0.00023876,2]
[388406640,1759158641708,-480.0,0.00023876,2]
[388406642,1759158641721,-480.0,0.00023876,2]
[388406644,1759158641735,-480.0,0.00023876,2]
[388406647,1759158641748,-480.0,0.00023876,2]
[388406649,1759158641762,-733.87,0.00023876,2]
[388406651,1759158641776,-480.0,0.00023876,2]
[388406654,1759158641792,-522.66,0.00023876,2]
[388406656,1759158641804,-480.0,0.00023876,2]
[388406658,1759158641817,-624.48,0.00023876,2]
[388406660,1759158641831,-480.0,0.00023876,2]
[388406663,1759158641844,-435.25189358,0.00023876,2]
[388406665,1759158641858,-559.98,0.00023876,2]
[388406667,1759158641871,-480.0,0.00023876,2]
[388406669,1759158641883,-500.0,0.00023883,2]
[388406671,1759158641894,-500.0,0.00023883,2]
[388406674,1759158641907,-813.07,0.00023884,2]
[388406676,1759158641919,-813.07,0.00023884,2]
[388406678,1759158641931,-813.07,0.00023885,2]
[388406680,1759158641945,-813.07,0.00023885,2]
[388406683,1759158641958,-500.0,0.00023885,2]
[388406685,1759158641972,-500.0,0.00023885,2]
[388406687,1759158641987,-500.0,0.00023885,2]
[388406690,1759158642001,-500.0,0.00023885,2]
[388406692,1759158642013,-500.0,0.00023885,2]
[388406694,1759158642023,-500.0,0.00023885,2]
[388406696,1759158642034,-500.0,0.00023885,2]
[388406698,1759158642045,-500.0,0.00023885,2]
[388406700,1759158642060,-500.0,0.00023885,2]
[388406703,1759158642074,-360.95047004,0.00023885,2]
[388406705,1759158642085,-480.0,0.00023886,2]
[388406707,1759158642097,-659.09,0.00023886,2]
[388406709,1759158642107,-480.0,0.00023886,2]
[388406712,1759158642120,-706.46,0.00023886,2]
[388406714,1759158642132,-480.0,0.00023886,2]
[388406716,1759158642143,-480.0,0.00023886,2]
[388406718,1759158642153,-357.24883556,0.00023886,2]
[388406720,1759158642166,-708.84,0.00023886,2]
[388406722,1759158642178,-500.0,0.00023886,2]
[388406724,1759158642189,-480.0,0.00023886,2]
[388406726,1759158642201,-480.0,0.00023886,2]
[388406729,1759158642212,-480.0,0.00023886,2]
[388406730,1759158642222,-365.077696,0.00023886,2]
[388406731,1759158642234,-480.0,0.00023886,2]
[388406733,1759158642245,-574.58,0.00023886,2]
[388406735,1759158642257,-480.0,0.00023886,2]
[388406736,1759158642268,-754.94,0.00023886,2]
[388406737,1759158642281,-480.0,0.00023886,2]
[388406739,1759158642292,-480.0,0.00023886,2]
[388406740,1759158642304,-480.0,0.00023886,2]
[388406742,1759158642315,-480.0,0.00023886,2]
[388406744,1759158642326,-480.0,0.00023886,2]
[388406745,1759158642337,-579.4,0.00023886,2]
[388406747,1759158642350,-1207.44,0.00023886,2]
[388406748,1759158642362,-673.47,0.00023886,2]
[388406750,1759158642374,-480.0,0.00023886,2]
[388406751,1759158642386,-480.0,0.00023886,2]
[388406753,1759158642398,-813.07,0.00023886,2]
[388406754,1759158642411,-813.07,0.00023886,2]
[388406756,1759158642422,-480.0,0.00023886,2]
[388406757,1759158642434,-480.0,0.00023886,2]
[388406759,1759158642446,-772.48,0.00023886,2]
[388406760,1759158642458,-480.0,0.00023886,2]
[388406762,1759158642469,-500.0,0.00023886,2]
[388406764,1759158642481,-500.0,0.00023886,2]
[388406765,1759158642493,-500.0,0.00023886,2]
[388406767,1759158642504,-500.0,0.00023886,2]
[388406769,1759158642516,-500.0,0.00023886,2]
[388406770,1759158642527,-503.59871345,0.00023887,2]
[388406772,1759158642539,-480.0,0.00023887,2]
[388406773,1759158642550,-480.0,0.00023887,2]
[388406775,1759158642562,-480.0,0.00023887,2]
[388406777,1759158642574,-480.0,0.00023887,2]
[388406778,1759158642586,-151.0,0.000239,5]
[388406780,1759158642598,-151.0,0.000239,8]
[388406781,1759158642609,-151.0,0.000239,10]
[388406783,1759158642621,-151.0,0.000239,10]
[388406784,1759158642632,-194.22,0.000239,8]
[388406785,1759158642643,-194.22,0.000239,8]
[388406787,1759158642654,-194.22,0.000239,8]
[388406788,1759158642667,-194.22,0.000239,8]
[388406790,1759158642679,-194.22,0.000239,8]
[388406792,1759158642691,-194.22,0.000239,8]
[388406793,1759158642703,-151.0,0.000239,8]
[388406795,1759158642714,-150.98,0.000239,7]
[388406796,1759158642725,-1808.2156508,0.00023918,2]
[388406798,1759158642736,-10379.32983865,0.0002392,2]
[388406799,1759158642747,-813.07,0.00023939,2]
[388406801,1759158642758,-500.0,0.00023972,2]
[388406803,1759158642769,-361.69,0.00023973,2]
[388406804,1759158642781,-813.07,0.00023984,2]
[388406806,1759158642795,-100000.0,0.0002399,2]
[388406808,1759158642807,-151.0,0.00024,8]
[388406809,1759158642819,-151.0,0.00024,7]
[388406811,1759158642831,-151.0,0.00024,10]
[388406813,1759158642842,-151.0,0.00024,6]
[388406814,1759158642854,-151.0,0.00024,6]
[388406816,1759158642866,-151.0,0.00024,10]
[388406817,1759158642877,-9011.29945648,0.00024,2]
[388406819,1759158642887,-889.175,0.00024028,5]
[388406821,1759158642898,-178.643,0.00024028,5]
[388406822,1759158642910,-480.0,0.00024047,2]
[388406824,1759158642921,-32810.90395076,0.00024047,2]
[388406825,1759158642931,-480.0,0.00024047,2]
[388406827,1759158642942,-480.0,0.00024047,2]
[388406829,1759158642953,-618.01,0.00024047,2]
[388406830,1759158642964,-480.0,0.00024047,2]
[388406832,1759158642974,-1013.97,0.00024047,2]
[388406834,1759158642986,-480.0,0.00024047,2]
[388406837,1759158642997,-480.0,0.00024047,2]
[388406839,1759158643008,-1342.73,0.00024047,2]
[388406843,1759158643019,-480.0,0.00024047,2]
[388406846,1759158643031,-2962.42,0.00024047,2]
[388406848,1759158643042,-5544.37,0.00024047,2]
[388406851,1759158643053,-480.0,0.00024047,2]
[388406854,1759158643065,-480.0,0.00024047,2]
[388406856,1759158643077,-657.07,0.00024047,2]
[388406859,1759158643088,-480.0,0.00024047,2]
[388406860,1759158643099,-539.82,0.00024047,2]
[388406862,1759158643110,-480.0,0.00024047,2]
[388406864,1759158643122,-5743.03,0.00024047,2]
[388406866,1759158643134,-2111.82,0.00024047,2]
[388406868,1759158643145,-1490.42,0.00024047,2]
[388406870,1759158643157,-564.32,0.00024047,2]
[388406872,1759158643169,-480.0,0.00024047,2]
[388406874,1759158643181,-691.8,0.00024047,2]
[388406875,1759158643192,-583.89,0.00024047,2]
[388406877,1759158643205,-1001.62,0.00024047,2]
[388406879,1759158643217,-480.0,0.00024047,2]
[388406880,1759158643229,-319.62,0.00024052,2]
[388406882,1759158643242,-10379.32983865,0.00024054,2]
[388406883,1759158643253,-410.55409294,0.0002406,2]
[388406885,1759158643265,-480.0,0.0002406,2]
[388406887,1759158643278,-483.06,0.0002406,2]
[388406888,1759158643289,-480.0,0.0002406,2]
[388406890,1759158643301,-537.43,0.0002406,2]
[388406892,1759158643315,-826.26,0.0002406,2]
[388406893,1759158643328,-480.0,0.0002406,2]
[388406895,1759158643339,-891.2,0.0002406,2]
[388406896,1759158643352,-577.99,0.0002406,2]
[388406898,1759158643364,-657.57,0.0002406,2]
[388406900,1759158643376,-1818.31,0.0002406,2]
[388406901,1759158643388,-1293.0,0.0002406,2]
[388406903,1759158643400,-581.54,0.0002406,2]
[388406905,1759158643412,-480.0,0.0002406,2]
[388406906,1759158643425,-1758.17,0.0002406,2]
[388406908,1759158643437,-493.28,0.0002406,2]
[388406909,1759158643448,-480.0,0.0002406,2]
[388406911,1759158643460,-748.97,0.0002406,2]
[388406913,1759158643472,-1255.43,0.0002406,2]
[388406914,1759158643484,-561.19,0.0002406,2]
[388406916,1759158643496,-387.58425131,0.0002406,2]
[388406918,1759158643509,-480.0,0.0002406,2]
[388406919,1759158643521,-480.0,0.0002406,2]
[388406921,1759158643531,-495.21,0.0002406,2]
[388406922,1759158643541,-214.15505099,0.0002406,2]
[388406924,1759158643552,-1088.15,0.0002406,2]
[388406925,1759158643562,-480.0,0.0002406,2]
[388406927,1759158643572,-480.0,0.0002406,2]
[388406938,1759158643582,-854.53,0.0002406,2]
[388406943,1759158643862,-849.71,0.0002406,2]
[388406946,1759158643884,-480.0,0.0002406,2]
[388406947,1759158643894,-480.0,0.0002406,2]
[388406949,1759158643904,-1229.08,0.0002406,2]
[388406950,1759158643914,-480.0,0.0002406,2]
[388406952,1759158643924,-480.0,0.0002406,2]
[388406953,1759158643933,-2724.96,0.0002406,2]
[388406955,1759158643943,-629.84,0.0002406,2]
[388406956,1759158643952,-2122.12,0.0002406,2]
[388406958,1759158643962,-1372.78,0.0002406,2]
[388406959,1759158643971,-480.0,0.0002406,2]
[388406961,1759158643981,-965.97,0.0002406,2]
[388406963,1759158643990,-480.0,0.0002406,2]
[388406966,1759158644000,-1709.68,0.0002406,2]
[388406967,1759158644010,-480.0,0.0002406,2]
[388406969,1759158644019,-480.0,0.0002406,2]
[388406970,1759158644029,-1524.78,0.0002406,2]
[388406972,1759158644039,-480.0,0.0002406,2]
[388406973,1759158644048,-6656.2,0.0002406,2]
[388406975,1759158644058,-480.0,0.0002406,2]